fUSD/lending_fUSD_20250606
["ID","MTS","AMOUNT","RATE_DAILY","PERIOD"]
[364810136,1749247843198,-3678.53,0.00027397,5]
[364810138,1749247843208,-480.0,0.00027397,5]
[364810140,1749247843217,-480.0,0.00027397,2]
[364810142,1749247843226,-480.0,0.00027397,5]
[364810144,1749247843236,-480.0,0.00027397,5]
[364810146,1749247843244,-480.0,0.00027397,5]
[364810148,1749247843254,-599.2,0.00027397,5]
[364810150,1749247843263,-480.0,0.00027397,5]
[364810152,1749247843273,-480.0,0.00027397,5]
[364810154,1749247843282,-817.96,0.00027397,5]
[364810156,1749247843291,-487.67,0.00027397,5]
[364810158,1749247843300,-480.0,0.00027397,5]
[364810160,1749247843309,-2671.29,0.00027397,5]
[364810162,1749247843319,-480.0,0.00027397,5]
[364810164,1749247843328,-27056.58,0.00027397,5]
[364810166,1749247843337,-1468.19,0.00027397,5]
[364810168,1749247843346,-480.0,0.00027397,5]
[364810170,1749247843356,-480.0,0.00027397,5]
[364810172,1749247843366,-480.0,0.00027397,5]
[364810174,1749247843375,-480.0,0.00027397,5]
[364810176,1749247843385,-4227.03,0.00027397,5]
[364810178,1749247843395,-1639.81,0.00027397,5]
[364810180,1749247843404,-1586.13,0.00027397,2]
[364810181,1749247843414,-155.67,0.00027397,2]
[364810183,1749247843423,-176.64459681,0.00027461,2]
[364810185,1749247843433,-1245.81493061,0.00027529,2]
[364810187,1749247843443,-6229.07465305,0.00027541,2]
[364810189,1749247843452,-1245.81493061,0.00027551,2]
[364810191,1749247843462,-9966.51944488,0.00027551,2]
[364810193,1749247843471,-5385.27882399,0.00027552,2]
[364810195,1749247843480,-815.49176001,0.0002756,2]
[364810197,1749247843489,-500.0,0.0002756,2]
[364810199,1749247843499,-480.0,0.00027561,5]
[364810201,1749247843508,-628.27921221,0.00027561,5]
[364810203,1749247843518,-480.0,0.00027561,5]
[364810205,1749247843527,-480.0,0.00027561,5]
[364810207,1749247843536,-480.0,0.00027561,5]
[364810209,1749247843545,-656.46,0.00027561,5]
[364810211,1749247843555,-480.0,0.00027561,5]
[364810213,1749247843564,-656.1,0.00027561,5]
[364810215,1749247843574,-480.0,0.00027561,5]
[364810217,1749247843585,-480.0,0.00027561,5]
[364810219,1749247843594,-480.0,0.00027561,5]
[364810221,1749247843604,-480.0,0.00027561,5]
[364810223,1749247843614,-480.0,0.00027561,5]
[364810225,1749247843624,-480.0,0.00027561,5]
[364810227,1749247843634,-480.0,0.00027561,5]
[364810229,1749247843643,-480.0,0.00027561,5]
[364810231,1749247843653,-480.0,0.00027561,5]
[364810233,1749247843663,-480.0,0.00027561,5]
[364810235,1749247843672,-480.0,0.00027561,5]
[364810237,1749247843682,-480.0,0.00027561,5]
[364810239,1749247843691,-480.0,0.00027561,5]
[364810241,1749247843701,-480.0,0.00027561,5]
[364810243,1749247843711,-535.3,0.00027561,5]
[364810245,1749247843720,-480.0,0.00027561,5]
[364810247,1749247843729,-480.0,0.00027561,5]
[364810249,1749247843738,-599.82,0.00027561,5]
[364810251,1749247843748,-480.0,0.00027561,5]
[364810253,1749247843757,-480.0,0.00027561,5]
[364810255,1749247843767,-480.0,0.00027561,5]
[364810257,1749247843776,-480.0,0.00027561,5]
[364810259,1749247843787,-860.04,0.00027561,5]
[364810261,1749247843796,-480.0,0.00027561,5]
[364810263,1749247843806,-480.0,0.00027561,5]
[364810265,1749247843815,-480.0,0.00027561,5]
[364810267,1749247843825,-480.0,0.00027561,5]
[364810269,1749247843834,-504.9,0.00027561,5]
[364810271,1749247843843,-480.0,0.00027561,5]
[364810273,1749247843853,-687.1,0.00027561,5]
[364810275,1749247843863,-480.0,0.00027561,5]
[364810277,1749247843872,-480.0,0.00027561,5]
[364810279,1749247843882,-480.0,0.00027561,5]
[364810281,1749247843891,-480.0,0.00027561,5]
[364810283,1749247843901,-480.0,0.00027561,5]
[364810285,1749247843909,-491.71,0.00027561,5]
[364810287,1749247843919,-954.93,0.00027561,5]
[364810289,1749247843929,-480.0,0.00027561,5]
[364810291,1749247843938,-480.0,0.00027561,5]
[364810293,1749247843948,-480.0,0.00027561,5]
[364810295,1749247843957,-480.0,0.00027561,5]
[364810297,1749247843966,-491.25,0.00027561,5]
[364810299,1749247843976,-480.0,0.00027561,5]
[364810301,1749247843985,-480.0,0.00027561,5]
[364810303,1749247843994,-347.641178,0.00027561,5]
[364810304,1749247844003,-581.59,0.00027561,5]
[364810305,1749247844011,-939.07,0.00027561,5]
[364810306,1749247844020,-480.0,0.00027561,5]
[364810307,1749247844029,-759.193737,0.00027561,5]
[364810308,1749247844038,-480.0,0.00027561,5]
[364810309,1749247844047,-480.0,0.00027561,5]
[364810310,1749247844057,-480.0,0.00027561,5]
[364810311,1749247844067,-480.0,0.00027561,5]
[364810312,1749247844076,-480.0,0.00027561,5]
[364810313,1749247844086,-480.0,0.00027561,5]
[364810315,1749247844095,-266.14766212,0.00027561,5]
[364810316,1749247844104,-520.85,0.00027561,5]
[364810317,1749247844114,-495.95,0.00027561,5]
[364810318,1749247844123,-480.0,0.00027561,5]
[364810319,1749247844135,-480.0,0.00027561,5]
[364810320,1749247844145,-561.15,0.00027561,5]
[364810321,1749247844154,-480.0,0.00027561,5]
[364810322,1749247844163,-515.18,0.00027561,5]
[364810323,1749247844172,-764.11,0.00027561,5]
[364810324,1749247844182,-480.0,0.00027561,5]
[364810325,1749247844191,-480.0,0.00027561,5]
[364810326,1749247844200,-480.0,0.00027561,5]
[364810327,1749247844209,-480.0,0.00027561,5]
[364810328,1749247844220,-480.0,0.00027561,5]
[364810329,1749247844229,-537.86,0.00027561,5]
[364810330,1749247844238,-523.98,0.00027561,5]
[364810331,1749247844247,-480.0,0.00027561,5]
[364810332,1749247844256,-480.0,0.00027561,5]
[364810333,1749247844265,-480.0,0.00027561,5]
[364810334,1749247844274,-480.0,0.00027561,5]
[364810335,1749247844284,-480.0,0.00027561,5]
[364810336,1749247844293,-480.0,0.00027561,5]
[364810337,1749247844303,-778.25,0.00027561,5]
[364810338,1749247844312,-480.0,0.00027561,5]
[364810339,1749247844321,-480.0,0.00027561,5]
[364810340,1749247844330,-480.0,0.00027561,5]
[364810342,1749247844339,-480.0,0.00027561,5]
[364810344,1749247844348,-607.83,0.00027561,5]
[364810346,1749247844357,-480.0,0.00027561,5]
[364810348,1749247844367,-600.0,0.00027561,30]
[364810350,1749247844376,-480.0,0.00027561,5]
[364810351,1749247844385,-480.0,0.00027561,5]
[364810353,1749247844395,-480.0,0.00027561,5]
[364810355,1749247844404,-480.0,0.00027561,5]
[364810357,1749247844413,-1000.0,0.00027561,2]
[364810359,1749247844422,-480.0,0.00027561,5]
[364810361,1749247844432,-480.0,0.00027561,5]
[364810363,1749247844441,-5754.36,0.00027561,5]
[364810365,1749247844450,-518.03,0.00027561,5]
[364810367,1749247844459,-482.91,0.00027561,5]
[364810368,1749247844468,-579.92,0.00027561,5]
[364810369,1749247844477,-731.18,0.00027561,5]
[364810370,1749247844486,-480.0,0.00027561,5]
[364810371,1749247844496,-555.42,0.00027561,5]
[364810372,1749247844506,-677.29,0.00027561,5]
[364810373,1749247844515,-500.79,0.00027561,5]
[364810374,1749247844524,-480.0,0.00027561,5]
[364810375,1749247844533,-804.71,0.00027561,5]
[364810376,1749247844543,-1334.34,0.00027561,5]
[364810377,1749247844552,-480.0,0.00027561,5]
[364810378,1749247844561,-480.0,0.00027561,5]
[364810379,1749247844570,-652.75,0.00027561,5]
[364810380,1749247844579,-677.01,0.00027561,5]
[364810381,1749247844588,-656.42,0.00027561,5]
[364810382,1749247844598,-480.0,0.00027561,5]
[364810383,1749247844607,-1477.39,0.00027561,5]
[364810384,1749247844617,-1090.19,0.00027561,5]
[364810385,1749247844627,-1203.07,0.00027561,5]
[364810386,1749247844636,-608.2,0.00027561,5]
[364810387,1749247844645,-3401.07,0.00027561,5]
[364810388,1749247844655,-851.53,0.00027561,5]
[364810389,1749247844664,-853.59,0.00027561,5]
[364810390,1749247844673,-480.0,0.00027561,5]
[364810391,1749247844683,-480.0,0.00027561,5]
[364810392,1749247844692,-534.28,0.00027561,5]
[364810393,1749247844702,-480.0,0.00027561,5]
[364810394,1749247844711,-499.34,0.00027561,5]
[364810395,1749247844720,-1587.65,0.00027561,5]
[364810396,1749247844730,-480.0,0.00027561,5]
[364810397,1749247844740,-480.0,0.00027561,5]
[364810398,1749247844750,-1454.59,0.00027561,5]
[364810399,1749247844760,-684.55,0.00027561,5]
[364810400,1749247844769,-480.0,0.00027561,5]
[364810401,1749247844778,-2090.68,0.00027561,5]
[364810402,1749247844787,-550.58,0.00027561,5]
[364810403,1749247844797,-777.67,0.00027561,5]
[364810404,1749247844806,-553.27,0.00027561,5]
[364810405,1749247844816,-755.58,0.00027561,5]
[364810406,1749247844825,-596.09,0.00027561,5]
[364810407,1749247844834,-5091.06,0.00027561,5]
[364810408,1749247844843,-480.0,0.00027561,5]
[364810409,1749247844853,-480.0,0.00027561,5]
[364810410,1749247844862,-917.25,0.00027561,5]
[364810411,1749247844872,-480.0,0.00027561,5]
[364810412,1749247844881,-480.0,0.00027561,5]
[364810413,1749247844891,-480.0,0.00027561,5]
[364810414,1749247844901,-480.0,0.00027561,5]
[364810415,1749247844911,-668.34,0.00027561,5]
[364810416,1749247844920,-1577.2,0.00027561,5]
[364810417,1749247844930,-343.84353612,0.00027561,5]
[364810419,1749247844940,-480.0,0.00027561,5]
[364810421,1749247844950,-784.58,0.00027561,5]
[364810423,1749247844959,-480.0,0.00027561,5]
[364810424,1749247844969,-607.37,0.00027561,5]
[364810426,1749247844978,-480.0,0.00027561,5]
[364810427,1749247844988,-480.0,0.00027561,5]
[364810428,1749247844997,-480.0,0.00027561,5]
[364810429,1749247845007,-480.0,0.00027561,5]
[364810430,1749247845017,-480.0,0.00027561,5]
[364810431,1749247845027,-480.0,0.00027561,5]
[364810432,1749247845036,-823.17,0.00027561,5]
[364810433,1749247845046,-480.0,0.00027561,5]
[364810434,1749247845055,-480.0,0.00027561,5]
[364810435,1749247845065,-480.0,0.00027561,5]
[364810436,1749247845075,-7989.65,0.00027561,5]
[364810437,1749247845085,-480.0,0.00027561,5]
[364810438,1749247845095,-1013.94,0.00027561,5]
[364810439,1749247845104,-480.0,0.00027561,5]
[364810440,1749247845114,-828.01,0.00027561,5]
[364810441,1749247845124,-1997.31,0.00027561,5]
[364810442,1749247845136,-480.0,0.00027561,5]
[364810443,1749247845145,-480.0,0.00027561,5]
[364810444,1749247845155,-480.0,0.00027561,5]
[364810446,1749247845165,-480.0,0.00027561,5]
[364810447,1749247845175,-613.19,0.00027561,5]
[364810448,1749247845184,-480.0,0.00027561,5]
[364810449,1749247845193,-480.0,0.00027561,5]
[364810450,1749247845203,-948.46,0.00027561,5]
[364810451,1749247845213,-480.0,0.00027561,5]
[364810452,1749247845222,-893.73,0.00027561,5]
[364810453,1749247845232,-1648.3,0.00027561,5]
[364810454,1749247845241,-786.84,0.00027561,5]
[364810455,1749247845250,-480.0,0.00027561,5]
[364810456,1749247845260,-1606.79,0.00027561,5]
[364810457,1749247845269,-480.0,0.00027561,5]
[364810458,1749247845278,-3114.55,0.00027561,5]
[364810459,1749247845287,-480.0,0.00027561,5]
[364810460,1749247845297,-480.0,0.00027561,5]
[364810461,1749247845307,-480.0,0.00027561,5]
[364810462,1749247845316,-618.77537129,0.00027561,5]
[364810463,1749247845326,-873.44,0.00027561,5]
[364810464,1749247845335,-480.0,0.00027561,5]
[364810465,1749247845344,-1080.96,0.00027561,5]
[364810466,1749247845353,-705.89,0.00027561,5]
[364810467,1749247845363,-480.0,0.00027561,5]
[364810468,1749247845372,-831.28,0.00027561,5]
[364810469,1749247845381,-1563.46,0.00027561,5]
[364810470,1749247845390,-694.09,0.00027561,5]
[364810471,1749247845399,-480.0,0.00027561,5]
[364810472,1749247845409,-1508.08,0.00027561,5]
[364810473,1749247845418,-480.0,0.00027561,5]
[364810474,1749247845427,-915.31,0.00027561,5]
[364810475,1749247845436,-834.76,0.00027561,5]
[364810476,1749247845445,-583.17,0.00027561,5]
[364810477,1749247845455,-367.21893269,0.00027561,5]
[364810478,1749247845464,-483.37,0.00027561,5]
[364810479,1749247845473,-2725.29,0.00027561,5]
[364810480,1749247845482,-1076.97,0.00027561,5]
[364810481,1749247845491,-979.92,0.00027561,5]
[364810482,1749247845501,-514.46,0.00027561,5]
[364810483,1749247845510,-916.73,0.00027561,5]
[364810484,1749247845520,-480.0,0.00027561,5]
[364810485,1749247845530,-950.23,0.00027561,5]
[364810486,1749247845540,-480.0,0.00027561,5]
[364810487,1749247845550,-480.0,0.00027561,5]
[364810488,1749247845559,-480.0,0.00027561,5]
[364810489,1749247845569,-480.0,0.00027561,5]
[364810490,1749247845578,-480.0,0.00027561,5]
[364810504,1749247845780,-1350.27,0.00027561,5]
[364810505,1749247845790,-480.0,0.00027561,5]
[364810506,1749247845800,-566.19,0.00027561,5]
[364810507,1749247845810,-480.0,0.00027561,5]
[364810508,1749247845819,-511.41,0.00027561,5]
[364810509,1749247845829,-480.0,0.00027561,5]
[364810510,1749247845838,-538.53,0.00027561,5]
[364810511,1749247845848,-3885.78,0.00027561,5]
[364810512,1749247845858,-480.0,0.00027561,5]
[364810513,1749247845870,-1472.21,0.00027561,5]
[364810514,1749247845879,-609.1,0.00027561,5]
[364810515,1749247845889,-978.16,0.00027561,5]
[364810516,1749247845899,-677.05,0.00027561,5]
[364810517,1749247845909,-1919.51,0.00027561,5]
[364810518,1749247845919,-480.0,0.00027561,5]
[364810519,1749247845929,-2128.63,0.00027561,5]
[364810520,1749247845939,-480.0,0.00027561,5]
[364810521,1749247845948,-403.66358394,0.00027561,2]
[364810522,1749247846348,-76.33641606,0.00027561,2]
[364810523,1749247846358,-480.0,0.00027561,5]
[364810524,1749247846368,-3678.53,0.00027561,5]
[364810525,1749247846377,-556.78642225,0.00027561,5]
[364810526,1749247846386,-480.0,0.00027561,2]
[364810527,1749247846395,-480.0,0.00027561,5]
[364810528,1749247846404,-480.0,0.00027561,5]
[364810529,1749247846414,-233.78311332,0.00027561,5]
[364810530,1749247846424,-599.2,0.00027561,5]
[364810531,1749247846433,-480.0,0.00027561,5]
[364810532,1749247846442,-480.0,0.00027561,5]
[364810533,1749247846452,-817.96,0.00027561,5]
[364810534,1749247846461,-487.67,0.00027561,5]
[364810535,1749247846470,-480.0,0.00027561,5]
[364810536,1749247846481,-2671.29,0.00027561,5]
[364810537,1749247846490,-480.0,0.00027561,5]
[364810538,1749247846500,-4262.37638189,0.00027561,5]
[364810539,1749247846528,-1807.3,0.00027561,5]
[364810540,1749247846551,-577.13,0.00027561,5]
[364810541,1749247875634,250.0,0.00019,2]
[364810543,1749247881205,170.66,0.00026887,120]
[364810545,1749247896431,200.0,0.00035616,120]
[364810552,1749248233514,192.0,0.00033904,120]
[364810554,1749248298597,9074.77,0.0003561,120]
[364810555,1749248330530,392.1,0.000356,120]
[364810556,1749248395546,250.0,0.0003561,120]
[364810558,1749248555235,172.32,0.00013699,2]
[364810563,1749248679459,2000.0,0.000356,120]
[364810564,1749248701806,2000.0,0.0003561,120]
[364810565,1749248710541,256.58718561,0.000154,2]
[364810566,1749248714660,2166.48704845,0.000121,30]
[364810567,1749248719665,4010.92486774,9e-05,2]
[364810569,1749248725664,245.76557905,0.000108,2]
[364810571,1749248731790,1000.0,0.00035616,120]
[364810572,1749248736441,2446.38051852,9e-05,2]
[364810573,1749248742020,5313.80959657,0.0002,30]
[364810574,1749248754552,22557.67634294,6.94e-05,2]
[364810576,1749248762151,15118.47205663,8e-05,2]
[364810577,1749248766402,6538.47189172,8e-05,2]
[364810579,1749248779132,200.0,0.00035616,120]
[364810580,1749248788678,1987.47044407,0.00015,2]
[364810582,1749248801262,1545.1569398,0.0002,30]
[364810583,1749248817395,1697.0001333,0.000356,120]
[364810590,1749248832704,959.95798579,0.00015,2]
[364810592,1749248835227,205.0,9.8e-05,2]
[364810593,1749248839108,252.47829235,0.000101,2]
[364810594,1749248839390,626.5311555,0.00035616,120]
[364810595,1749248852778,10493.35763221,0.00018,2]
[364810596,1749248856214,6860.13720337,0.00018,2]
[364810597,1749248856238,2853.81265432,0.00018,2]
[364810598,1749248856260,2853.81265432,0.00018,2]
[364810599,1749248856281,2853.81265432,0.00018,2]
[364810600,1749248856303,2853.81265432,0.00018,2]
[364810601,1749248856325,2853.81265432,0.00018,2]
[364810602,1749248856347,2853.81265432,0.00018,2]
[364810603,1749248856368,2853.81265432,0.00018,2]
[364810604,1749248856388,2853.81265432,0.00018,2]
[364810605,1749248856409,2853.81265432,0.00018,2]
[364810606,1749248856430,2853.81265432,0.00018,2]
[364810607,1749248856456,8000.0,0.00018,2]
[364810608,1749248856482,8000.0,0.00018,2]
[364810609,1749248856504,8000.0,0.00018,2]
[364810610,1749248856528,8000.0,0.00018,2]
[364810611,1749248856552,8000.0,0.00018,2]
[364810612,1749248856573,8000.0,0.00018,2]
[364810613,1749248856595,8000.0,0.00018,2]
[364810614,1749248856617,8000.0,0.00018,2]
[364810615,1749248856641,8000.0,0.00018,2]
[364810616,1749248856665,8000.0,0.00018,2]
[364810617,1749248856693,3000.0,0.00018,2]
[364810618,1749248856724,1924.05640741,0.00018,2]
[364810620,1749248870329,4297.52768223,0.00013,2]
[364810622,1749248875152,3413.90455632,0.00015,2]
[364810623,1749248875196,1516.22883374,0.000181,2]
[364810629,1749248890716,4555.35784074,0.0001439,2]
[364810630,1749248892289,200.0,0.0001634,2]
[364810631,1749248893926,1000.0,0.000135,2]
[364810632,1749248893965,298.59046862,0.000125,2]
[364810635,1749248902665,1000.0,0.00035616,120]
[364810638,1749248907003,1154.07553467,0.00018,2]
[364810639,1749248910005,217.55410191,0.0001,2]
[364810640,1749248910897,155.81,0.00035318,120]
[364810641,1749248911349,13383.38394824,0.000149,2]
[364810648,1749248913289,2657.51325598,0.0001,2]
[364810649,1749248916151,10186.869999,0.000151,2]
[364810653,1749248919823,347.64672872,0.00010136,2]
[364810655,1749248920145,26862.85112983,0.00013368,2]
[364810657,1749248922266,4018.73565487,0.00019,2]
[364810694,1749249032002,-1200.0,0.00019899,2]
[364810695,1749249032011,-127.70118,0.000199,2]
[364810696,1749249032022,-600.56056441,0.000199,2]
[364810697,1749249032083,-3466.9925743,0.000199,2]
[364810698,1749249032172,-121.41134792,0.000199,2]
[364810699,1749249032182,-165.96553589,0.000199,2]
[364810700,1749249032192,-500.0,0.00019973,2]
[364810701,1749249032202,-152.54,0.0001999,2]
[364810702,1749249032211,-300.0,0.00019998,2]
[364810703,1749249032221,-300.0,0.00019999,2]
[364810704,1749249032230,-346.4639644,0.00019999,2]
[364810705,1749249032242,-238.55466252,0.00019999,2]
[364810706,1749249032252,-320.908531,0.00019999,2]
[364810707,1749249032264,-179.091469,0.00019999,2]
[364810708,1749249032274,-360.20903683,0.00019999,2]
[364810709,1749249032285,-139.79096317,0.00019999,2]
[364810710,1749249032295,-500.0,0.00019999,2]
[364810711,1749249032306,-500.0,0.00019999,2]
[364810712,1749249032316,-500.0,0.00019999,2]
[364810713,1749249032326,-500.0,0.00019999,2]
[364810714,1749249032336,-500.0,0.00019999,2]
[364810715,1749249032345,-90.08070593,0.00019999,2]
[364810716,1749249032356,-409.91929407,0.00019999,2]
[364810717,1749249032366,-45.00599812,0.00019999,2]
[364810718,1749249032378,-454.99400188,0.00019999,2]
[364810719,1749249032387,-21.47653646,0.00019999,2]
[364810720,1749249032410,-339.17912446,0.00019999,2]
[364810721,1749249032434,-255.13614051,0.00019999,2]
[364810722,1749249032443,-237.57785844,0.00019999,2]
[364810723,1749249032453,-1595.6114043,0.0002,2]
[364810727,1749249032486,-724.11652513,0.0002,2]
[364810728,1749249032508,-1063.44509394,0.0002,2]
[364810729,1749249032547,-26439.40143946,0.0002,2]
[364810730,1749249037887,-1029.9092568,0.0002,2]
[364810731,1749249037900,-8718.18503368,0.0002,2]
[364810742,1749249038326,-3842.25183477,0.0002,2]
[364810745,1749249038337,-400.0,0.0002,2]
[364810746,1749249038354,-317632.41851965,0.0002,2]
[364810747,1749249038364,-43844.0,0.0002,2]
[364810749,1749249038373,-92365.10986592,0.0002,2]
[364810750,1749249038383,-302.55774826,0.0002,2]
[364810751,1749249038393,-10000.0,0.0002,2]
[364810752,1749249038402,-939.97249559,0.0002,2]
[364810753,1749249038411,-4323.37475757,0.0002,2]
[364810754,1749249038420,-377369.19061385,0.0002,2]
[364810755,1749249038429,-176.64459681,0.00020087,2]
[364810756,1749249038439,-172.32,0.00020187,2]
[364810757,1749249038448,-1000.0,0.00020521,2]
[364810758,1749249038723,-4316.66566655,0.00020738,2]
[364810759,1749249038733,-165.96553583,0.00021046,2]
[364810760,1749249038745,-500.0,0.00021068,2]
[364810761,1749249038756,-4316.66566655,0.00021576,2]
[364810762,1749249038765,-1680.0,0.00021774,2]
[364810763,1749249038774,-420.0,0.00021776,2]
[364810764,1749249038783,-165.96553583,0.00022192,2]
[364810765,1749249038792,-1000.0,0.00022268,2]
[364810766,1749249038801,-176.64459679,0.00022394,2]
[364810767,1749249038810,-4316.66566655,0.00022415,2]
[364810768,1749249038819,-4316.66566655,0.00023253,2]
[364810769,1749249038828,-165.96553583,0.00023338,2]
[364810770,1749249038838,-155.81,0.00023546,2]
[364810771,1749249038846,-1072.32,0.00023676,2]
[364810772,1749249038855,-587.0,0.00023711,2]
[364810773,1749249038865,-501.0,0.00023826,2]
[364810774,1749249038874,-3034.41014909,0.00024,2]
[364810775,1749249038883,-4316.66566655,0.00024091,2]
[364810776,1749249038893,-165.96553583,0.00024484,2]
[364810777,1749249038902,-66133.95,0.000245,2]
[364810778,1749249038911,-351.66901747,0.000245,11]
[364810779,1749249038921,-351.6690172,0.000245,11]
[364810780,1749249038930,-351.6690172,0.000245,11]
[364810781,1749249038939,-351.6690172,0.000245,11]
[364810782,1749249038949,-351.6690172,0.000245,11]
[364810783,1749249038958,-351.6690172,0.000245,11]
[364810784,1749249038967,-351.6690172,0.000245,11]
[364810785,1749249038977,-351.6690172,0.000245,11]
[364810786,1749249038987,-162.5322982,0.000247,2]
[364810787,1749249038996,-9499.96481456,0.000247,2]
[364810788,1749249039005,-176.64459679,0.000247,2]
[364810789,1749249039015,-2124.02250216,0.000247,2]
[364810790,1749249039024,-22044.64,0.00024736,2]
[364810791,1749249039033,-351.6690172,0.00024762,11]
[364810792,1749249039043,-152.54,0.0002479,2]
[364810793,1749249039052,-152.54,0.0002479,2]
[364810794,1749249039061,-152.54,0.0002479,2]
[364810795,1749249039070,-152.54,0.0002479,2]
[364810796,1749249039079,-152.54,0.0002479,2]
[364810797,1749249039089,-152.54,0.0002479,2]
[364810798,1749249039098,-655.51698818,0.0002479,2]
[364810799,1749249039108,-45150.86207654,0.00024799,7]
[364810800,1749249039117,-6466348.55305909,0.000248,7]
[364810801,1749249039129,-1839.75233867,0.000248,7]
[364810802,1749249039151,-1138.66621302,0.000248,7]
[364810803,1749249039162,-12916.22906374,0.000248,7]
[364810804,1749249039175,-1428.37905058,0.000248,7]
[364810805,1749249039186,-3701.48983757,0.000248,7]
[364810806,1749249039198,-709.08266212,0.000248,7]
[364810807,1749249039236,-1025.3,0.000248,7]
[364810809,1749249040075,-304.1753176,0.00019999,2]
[364810810,1749249040085,-290.64353349,0.00019999,2]
[364810811,1749249040095,-3819.19737214,0.000248,7]
[364810812,1749249040106,-1533.06836664,0.000248,7]
[364810813,1749249040118,-1891.83830736,0.000248,7]
[364810814,1749249040129,-1740.0911033,0.000248,7]
[364810815,1749249040141,-1199.30233872,0.000248,7]
[364810816,1749249040152,-1034.0,0.000248,7]
[364810817,1749249040169,-429411.13570506,0.000248,7]
[364810818,1749249040179,-314289.888689,0.000248,2]
[364810819,1749249040189,-200.0,0.00024827,2]
[364810820,1749249040198,-150.0,0.00024892,2]
[364810821,1749249040208,-284022.024915,0.000249,2]
[364810822,1749249040217,-1000.0,0.000249,2]
[364810823,1749249040227,-1000.0,0.000249,2]
[364810824,1749249040236,-1000.0,0.000249,2]
[364810825,1749249040246,-1000.0,0.000249,2]
[364810826,1749249040255,-1000.0,0.000249,2]
[364810827,1749249040265,-1000.0,0.000249,2]
[364810828,1749249040274,-1000.0,0.000249,2]
[364810829,1749249040283,-1000.0,0.000249,2]
[364810830,1749249040293,-1000.0,0.000249,2]
[364810831,1749249040303,-1000.0,0.000249,2]
[364810832,1749249040312,-300.08046781,0.00024928,2]
[364810833,1749249040322,-297.03921635,0.00024928,2]
[364810834,1749249040332,-355.3137985,0.00024928,2]
[364810835,1749249040342,-500.0,0.00024928,2]
[364810836,1749249040351,-288.50743947,0.00024928,2]
[364810837,1749249040361,-4316.66566655,0.00024929,2]
[364810838,1749249040370,-500.0,0.00024932,2]
[364810839,1749249040380,-150.0,0.00025035,2]
[364810840,1749249040389,-172.31,0.00025036,2]
[364810841,1749249040399,-126751.15,0.00025036,2]
[364810842,1749249040408,-1000.0,0.00025052,2]
[364810843,1749249040417,-150.0,0.00025063,2]
[364810844,1749249040427,-150.0,0.00025169,2]
[364810845,1749249040436,-150.0,0.00025244,2]
[364810846,1749249040446,-351.6690172,0.00025245,12]
[364810847,1749249040456,-152.0,0.00025317,3]
[364810848,1749249040465,-200.0,0.00025389,2]
[364810849,1749249040475,-169.64,0.00025407,2]
[364810850,1749249040485,-150.0,0.00025457,2]
[364810851,1749249040494,-150.0,0.00025482,2]